{"text_format":"1","workbook":"xlsx","n_sheets":3,"sheets":["相談会集計","相談者属性","特記事項"],"not_rendered":{"charts":6,"images":0,"macros":1,"external_links":0,"defined_names":1,"comments":0,"pivot_tables":0},"unopened":[],"bounds":{"document_bytes":16777216,"sheet_cells":100000,"rows_first":2000,"rows_last":500,"rows_between":2000,"halvings":0,"cell_chars":16384,"cell_head_chars":4096},"cells_cut":0,"cells_raw":0,"read":"whole","date_system":"1900"}

{"sheet":"相談会集計","index":0,"n_rows":86,"n_cols":191,"rows_kept":86,"cut":false,"hidden":false,"merged":[[1,16,2,16],[1,17,2,17],[1,18,2,18],[1,19,2,19],[1,20,2,20],[0,1,0,2],[0,4,0,15],[1,5,1,7],[77,1,77,2],[1,1,2,1],[1,2,2,2],[1,3,2,3],[1,4,2,4],[1,8,2,8],[1,9,2,9],[1,10,2,10],[1,11,2,11],[1,12,2,12],[1,13,2,13],[1,14,2,14],[1,15,2,15]]}
[null,"更新日：2018.3.28",null,null,"H２９年度（2017年度）パソコン相談集計表",null,null,null,null,null,null,null,null,null,null,null,null,null,null,null,"soudan4-3_17.xls　",null,null,null,null,null,null,null,null,null,null,null,null,null,null,null,null,null,null,null,null,null,null,null,null,null,null,null,null,null,null,null,null,null,null,null,null,null,null,null,null,null,null,null,null,null,null,null,null,null,null,null,null,null,null,null,null,null,null,null,null,null,null,null,null,null,null,null,null,null,null,null,null,null,null,null,null,null,null,null,null,null,null,null,null,null,null,null,null,null,null,null,null,null,null,null,null,null,null,null,null,null,null,null,null,null,null,null,null,null,null,null,null,null,null,null,null,null,null,null,null,null,null,null,null,null,null,null,null,null,null,null,null,null,null,null,null,null,null,null,null,null,null,null,null,null,null,null,null,null,null,null,null,null,null,null,null,null,null,null,null,null,null,null,null,null,null,null,null,null,"value関数"]
[null,"日付","実施場所","グループ","講師数","       参  加   者",null,null,"パソコンの基礎","デスクトップ整理","セキュリティ","ワード","エクセル","インターネット","Ｅメール","はがき","映像・音楽メディア","周辺接続　　機器","デジカメ","その他","相談件数"]
[null,null,null,null,null,"初参加","再参加","合計"]
[null,"2017-04-02","東地区","A",4,0,4,{"$f":"F4+G4","v":4},1,0,0,2,0,2,1,0,0,1,1,0,{"$f":"SUM(I4:T4)","v":8},null,null,null,null,null,null,null,null,null,null,null,null,null,null,null,null,null,null,null,null,null,null,null,null,null,null,null,null,null,null,null,null,null,null,null,null,null,null,null,null,null,null,null,null,null,null,null,null,null,null,null,null,null,null,null,null,null,null,null,null,null,null,null,null,null,null,null,null,null,null,null,null,null,null,null,null,null,null,null,null,null,null,null,null,null,null,null,null,null,null,null,null,null,null,null,null,null,null,null,null,null,null,null,null,null,null,null,null,null,null,null,null,null,null,null,null,null,null,null,null,null,null,null,null,null,null,null,null,null,null,null,null,null,null,null,null,null,null,null,null,null,null,null,null,null,null,null,null,null,null,null,null,null,null,null,null,null,"４月","４月","４月","４月","４月","４月"]
[null,"4月6日","北地区","D",9,1,9,{"$f":"F5+G5","v":10},4,0,0,2,2,4,1,null,0,null,1,0,{"$f":"SUM(I5:T5)","v":14},null,null,null,null,null,null,null,null,null,null,null,null,null,null,null,null,null,null,null,null,null,null,null,null,null,null,null,null,null,null,null,null,null,null,null,null,null,null,null,null,null,null,null,null,null,null,null,null,null,null,null,null,null,null,null,null,null,null,null,null,null,null,null,null,null,null,null,null,null,null,null,null,null,null,null,null,null,null,null,null,null,null,null,null,null,null,null,null,null,null,null,null,null,null,null,null,null,null,null,null,null,null,null,null,null,null,null,null,null,null,null,null,null,null,null,null,null,null,null,null,null,null,null,null,null,null,null,null,null,null,null,null,null,null,null,null,null,null,null,null,null,null,null,null,null,null,null,null,null,null,null,null,null,null,null,null,null,"6","19","16","14",25,2]
[null,"2017-04-14","公民館","C",6,1,5,6,0,0,0,0,3,0,0,0,0,0,3,0,6,null,null,null,null,null,null,null,null,null,null,null,null,null,null,null,null,null,null,null,null,null,null,null,null,null,null,null,null,null,null,null,null,null,null,null,null,null,null,null,null,null,null,null,null,null,null,null,null,null,null,null,null,null,null,null,null,null,null,null,null,null,null,null,null,null,null,null,null,null,null,null,null,null,null,null,null,null,null,null,null,null,null,null,null,null,null,null,null,null,null,null,null,null,null,null,null,null,null,null,null,null,null,null,null,null,null,null,null,null,null,null,null,null,null,null,null,null,null,null,null,null,null,null,null,null,null,null,null,null,null,null,null,null,null,null,null,null,null,null,null,null,null,null,null,null,null,null,null,null,null,null,null,null,null,null,null,null,"北"," 地区文化センター","東","公","公","東"]
[null,"2017-04-16","東地区","A",5,1,5,6,1,0,1,2,1,2,1,0,0,2,0,0,10,null,null,null,null,null,null,null,null,null,null,null,null,null,null,null,null,null,null,null,null,null,null,null,null,null,null,null,null,null,null,null,null,null,null,null,null,null,null,null,null,null,null,null,null,null,null,null,null,null,null,null,null,null,null,null,null,null,null,null,null,null,null,null,null,null,null,null,null,null,null,null,null,null,null,null,null,null,null,null,null,null,null,null,null,null,null,null,null,null,null,null,null,null,null,null,null,null,null,null,null,null,null,null,null,null,null,null,null,null,null,null,null,null,null,null,null,null,null,null,null,null,null,null,null,null,null,null,null,null,null,null,null,null,null,null,null,null,null,null,null,null,null,null,null,null,null,null,null,null,null,null,null,null,null,null,null,null,"D","Dグループ","A","ｃ","ｃ","A"]
[null,"2017-04-19","北地区","D",10,0,8,8,3,1,0,1,4,2,0,0,1,1,0,0,13,null,null,null,null,null,null,null,null,null,null,null,null,null,null,null,null,null,null,null,null,null,null,null,null,null,null,null,null,null,null,null,null,null,null,null,null,null,null,null,null,null,null,null,null,null,null,null,null,null,null,null,null,null,null,null,null,null,null,null,null,null,null,null,null,null,null,null,null,null,null,null,null,null,null,null,null,null,null,null,null,null,null,null,null,null,null,null,null,null,null,null,null,null,null,null,null,null,null,null,null,null,null,null,null,null,null,null,null,null,null,null,null,null,null,null,null,null,null,null,null,null,null,null,null,null,null,null,null,null,null,null,null,null,null,null,null,null,null,null,null,null,null,null,null,null,null,null,null,null,null,null,null,null,null,null,null,null,"9",10,"5","6"]
[null,"2017-04-25","公民館","C",6,0,6,6,0,1,0,0,2,1,1,0,0,0,1,1,7,null,null,null,null,null,null,null,null,null,null,null,null,null,null,null,null,null,null,null,null,null,null,null,null,null,null,null,null,null,null,null,null,null,null,null,null,null,null,null,null,null,null,null,null,null,null,null,null,null,null,null,null,null,null,null,null,null,null,null,null,null,null,null,null,null,null,null,null,null,null,null,null,null,null,null,null,null,null,null,null,null,null,null,null,null,null,null,null,null,null,null,null,null,null,null,null,null,null,null,null,null,null,null,null,null,null,null,null,null,null,null,null,null,null,null,null,null,null,null,null,null,null,null,null,null,null,null,null,null,null,null,null,null,null,null,null,null,null,null,null,null,null,null,null,null,null,null,null,null,null,null,null,null,null,null,null,null,"1","0","1","1"]
[null,"2017-05-07","東地区","A",6,0,7,7,0,1,0,2,2,3,2,0,0,0,0,1,11]
[null,"2017-05-10","北地区","D",8,1,8,9,1,1,0,2,1,2,4,1,2,0,0,0,14]
[null,"2017-05-12","公民館","C",6,1,4,5,0,0,0,0,2,0,0,0,1,0,1,2,6,null,null,null,null,null,null,null,null,null,null,null,null,null,null,null,null,null,null,null,null,null,null,null,null,null,null,null,null,null,null,null,null,null,null,null,null,null,null,null,null,null,null,null,null,null,null,null,null,null,null,null,null,null,null,null,null,null,null,null,null,null,null,null,null,null,null,null,null,null,null,null,null,null,null,null,null,null,null,null,null,null,null,null,null,null,null,null,null,null,null,null,null,null,null,null,null,null,null,null,null,null,null,null,null,null,null,null,null,null,null,null,null,null,null,null,null,null,null,null,null,null,null,null,null,null,null,null,null,null,null,null,null,null,null,null,null,null,null,null,null,null,null,null,null,null,null,null,null,null,null,null,null,null,null,null,null,null,"4","3","1","0"]
[null,"2017-05-17","北地区","D",6,0,6,6,1,0,0,3,2,2,0,0,0,0,0,2,10,null,null,null,null,null,null,null,null,null,null,null,null,null,null,null,null,null,null,null,null,null,null,null,null,null,null,null,null,null,null,null,null,null,null,null,null,null,null,null,null,null,null,null,null,null,null,null,null,null,null,null,null,null,null,null,null,null,null,null,null,null,null,null,null,null,null,null,null,null,null,null,null,null,null,null,null,null,null,null,null,null,null,null,null,null,null,null,null,null,null,null,null,null,null,null,null,null,null,null,null,null,null,null,null,null,null,null,null,null,null,null,null,null,null,null,null,null,null,null,null,null,null,null,null,null,null,null,null,null,null,null,null,null,null,null,null,null,null,null,null,null,null,null,null,null,null,null,null,null,null,null,null,null,null,null,null,null,"0","1","0","0"]
[null,"2017-05-21","東地区","A",5,0,4,4,0,0,1,0,0,3,1,0,0,0,0,0,5,null,null,null,null,null,null,null,null,null,null,null,null,null,null,null,null,null,null,null,null,null,null,null,null,null,null,null,null,null,null,null,null,null,null,null,null,null,null,null,null,null,null,null,null,null,null,null,null,null,null,null,null,null,null,null,null,null,null,null,null,null,null,null,null,null,null,null,null,null,null,null,null,null,null,null,null,null,null,null,null,null,null,null,null,null,null,null,null,null,null,null,null,null,null,null,null,null,null,null,null,null,null,null,null,null,null,null,null,null,null,null,null,null,null,null,null,null,null,null,null,null,null,null,null,null,null,null,null,null,null,null,null,null,null,null,null,null,null,null,null,null,null,null,null,null,null,null,null,null,null,null,null,null,null,null,null,null,"0","0","1","0"]
[null,"2017-05-23","公民館","C",7,1,4,5,1,0,0,0,3,0,1,0,0,0,0,1,6,null,null,null,null,null,null,null,null,null,null,null,null,null,null,null,null,null,null,null,null,null,null,null,null,null,null,null,null,null,null,null,null,null,null,null,null,null,null,null,null,null,null,null,null,null,null,null,null,null,null,null,null,null,null,null,null,null,null,null,null,null,null,null,null,null,null,null,null,null,null,null,null,null,null,null,null,null,null,null,null,null,null,null,null,null,null,null,null,null,null,null,null,null,null,null,null,null,null,null,null,null,null,null,null,null,null,null,null,null,null,null,null,null,null,null,null,null,null,null,null,null,null,null,null,null,null,null,null,null,null,null,null,null,null,null,null,null,null,null,null,null,null,null,null,null,null,null,null,null,null,null,null,null,null,null,null,null,"2","1","2","0"]
[null,"2017-06-01","北地区","D",8,1,6,7,2,0,0,2,1,0,1,0,0,0,1,2,{"$f":"SUM(I16:T16)","v":9},null,null,null,null,null,null,null,null,null,null,null,null,null,null,null,null,null,null,null,null,null,null,null,null,null,null,null,null,null,null,null,null,null,null,null,null,null,null,null,null,null,null,null,null,null,null,null,null,null,null,null,null,null,null,null,null,null,null,null,null,null,null,null,null,null,null,null,null,null,null,null,null,null,null,null,null,null,null,null,null,null,null,null,null,null,null,null,null,null,null,null,null,null,null,null,null,null,null,null,null,null,null,null,null,null,null,null,null,null,null,null,null,null,null,null,null,null,null,null,null,null,null,null,null,null,null,null,null,null,null,null,null,null,null,null,null,null,null,null,null,null,null,null,null,null,null,null,null,null,null,null,null,null,null,null,null,null,"2","4","1","3"]
[null,"2017-06-04","東地区","A",5,1,6,7,0,0,0,2,1,1,3,0,0,0,0,2,9,null,null,null,null,null,null,null,null,null,null,null,null,null,null,null,null,null,null,null,null,null,null,null,null,null,null,null,null,null,null,null,null,null,null,null,null,null,null,null,null,null,null,null,null,null,null,null,null,null,null,null,null,null,null,null,null,null,null,null,null,null,null,null,null,null,null,null,null,null,null,null,null,null,null,null,null,null,null,null,null,null,null,null,null,null,null,null,null,null,null,null,null,null,null,null,null,null,null,null,null,null,null,null,null,null,null,null,null,null,null,null,null,null,null,null,null,null,null,null,null,null,null,null,null,null,null,null,null,null,null,null,null,null,null,null,null,null,null,null,null,null,null,null,null,null,null,null,null,null,null,null,null,null,null,null,null,null,"4","2","2","0"]
[null,"2017-06-09","公民館","C",6,0,6,6,0,0,0,1,1,1,0,0,1,0,2,0,6,null,null,null,null,null,null,null,null,null,null,null,null,null,null,null,null,null,null,null,null,null,null,null,null,null,null,null,null,null,null,null,null,null,null,null,null,null,null,null,null,null,null,null,null,null,null,null,null,null,null,null,null,null,null,null,null,null,null,null,null,null,null,null,null,null,null,null,null,null,null,null,null,null,null,null,null,null,null,null,null,null,null,null,null,null,null,null,null,null,null,null,null,null,null,null,null,null,null,null,null,null,null,null,null,null,null,null,null,null,null,null,null,null,null,null,null,null,null,null,null,null,null,null,null,null,null,null,null,null,null,null,null,null,null,null,null,null,null,null,null,null,null,null,null,null,null,null,null,null,null,null,null,null,null,null,null,null,"1","0","1","0"]
[null,"2017-06-17","東地区","A",6,0,5,5,0,1,0,0,0,2,0,1,1,0,0,0,5,null,null,null,null,null,null,null,null,null,null,null,null,null,null,null,null,null,null,null,null,null,null,null,null,null,null,null,null,null,null,null,null,null,null,null,null,null,null,null,null,null,null,null,null,null,null,null,null,null,null,null,null,null,null,null,null,null,null,null,null,null,null,null,null,null,null,null,null,null,null,null,null,null,null,null,null,null,null,null,null,null,null,null,null,null,null,null,null,null,null,null,null,null,null,null,null,null,null,null,null,null,null,null,null,null,null,null,null,null,null,null,null,null,null,null,null,null,null,null,null,null,null,null,null,null,null,null,null,null,null,null,null,null,null,null,null,null,null,null,null,null,null,null,null,null,null,null,null,null,null,null,null,null,null,null,null,null,"0","0","0","0"]
[null,"2017-06-21","北地区","D",8,0,3,3,3,0,0,1,0,0,0,0,0,0,0,1,5,null,null,null,null,null,null,null,null,null,null,null,null,null,null,null,null,null,null,null,null,null,null,null,null,null,null,null,null,null,null,null,null,null,null,null,null,null,null,null,null,null,null,null,null,null,null,null,null,null,null,null,null,null,null,null,null,null,null,null,null,null,null,null,null,null,null,null,null,null,null,null,null,null,null,null,null,null,null,null,null,null,null,null,null,null,null,null,null,null,null,null,null,null,null,null,null,null,null,null,null,null,null,null,null,null,null,null,null,null,null,null,null,null,null,null,null,null,null,null,null,null,null,null,null,null,null,null,null,null,null,null,null,null,null,null,null,null,null,null,null,null,null,null,null,null,null,null,null,null,null,null,null,null,null,null,null,null,"0","1","0","0"]
[null,"2017-06-27","公民館","C",8,0,5,5,2,1,0,0,1,2,2,0,0,0,0,3,11,null,null,null,null,null,null,null,null,null,null,null,null,null,null,null,null,null,null,null,null,null,null,null,null,null,null,null,null,null,null,null,null,null,null,null,null,null,null,null,null,null,null,null,null,null,null,null,null,null,null,null,null,null,null,null,null,null,null,null,null,null,null,null,null,null,null,null,null,null,null,null,null,null,null,null,null,null,null,null,null,null,null,null,null,null,null,null,null,null,null,null,null,null,null,null,null,null,null,null,null,null,null,null,null,null,null,null,null,null,null,null,null,null,null,null,null,null,null,null,null,null,null,null,null,null,null,null,null,null,null,null,null,null,null,null,null,null,null,null,null,null,null,null,null,null,null,null,null,null,null,null,null,null,null,null,null,null,"0","1","2","0"]
[null,"2017-07-02","東地区","A",6,0,3,3,1,1,0,1,0,2,0,1,0,0,0,0,6,null,null,null,null,null,null,null,null,null,null,null,null,null,null,null,null,null,null,null,null,null,null,null,null,null,null,null,null,null,null,null,null,null,null,null,null,null,null,null,null,null,null,null,null,null,null,null,null,null,null,null,null,null,null,null,null,null,null,null,null,null,null,null,null,null,null,null,null,null,null,null,null,null,null,null,null,null,null,null,null,null,null,null,null,null,null,null,null,null,null,null,null,null,null,null,null,null,null,null,null,null,null,null,null,null,null,null,null,null,null,null,null,null,null,null,null,null,null,null,null,null,null,null,null,null,null,null,null,null,null,null,null,null,null,null,null,null,null,null,null,null,null,null,null,null,null,null,null,null,null,null,null,null,null,null,null,null,"1","0","0","3"]
[null,"2017-07-06","北地区","D",7,null,5,5,0,0,0,1,2,1,0,0,0,1,0,0,5,null,null,null,null,null,null,null,null,null,null,null,null,null,null,null,null,null,null,null,null,null,null,null,null,null,null,null,null,null,null,null,null,null,null,null,null,null,null,null,null,null,null,null,null,null,null,null,null,null,null,null,null,null,null,null,null,null,null,null,null,null,null,null,null,null,null,null,null,null,null,null,null,null,null,null,null,null,null,null,null,null,null,null,null,null,null,null,null,null,null,null,null,null,null,null,null,null,null,null,null,null,null,null,null,null,null,null,null,null,null,null,null,null,null,null,null,null,null,null,null,null,null,null,null,null,null,null,null,null,null,null,null,null,null,null,null,null,null,null,null,null,null,null,null,null,null,null,null,null,null,null,null,null,null,null,null,null,"0","0","0","0"]
[null,"2017-07-14","公民館","C",5,1,4,5,0,0,0,3,2,1,0,0,1,0,0,0,7]
[null,"2017-07-16","東地区","A",5,0,5,5,0,0,0,1,1,1,0,0,2,1,1,1,8]
[null,"2017-07-19","北地区","D",8,null,7,7,null,null,null,5,1,1,null,null,1,null,null,1,9]
[null,"2017-07-25","公民館","C",7,1,2,3,2,0,1,0,1,1,0,0,0,0,0,1,{"$f":"SUM(I27:T27)","v":6}]
[null,"2017-08-03","北地区","D",7,0,5,5,1,0,1,1,2,1,0,1,0,1,0,0,8]
[null,"2017-08-06","東地区","A",6,0,6,6,1,1,0,1,1,3,1,0,1,0,1,1,11]
[null,"2017-08-12","公民館","C",4,1,4,5,0,0,0,0,1,1,0,0,2,0,1,0,5]
[null,"2017-08-16","北地区","D",7,0,8,8,2,0,0,3,1,1,2,0,0,0,0,1,10]
[null,"2017-08-20","東地区","A",6,0,4,4,1,1,0,0,0,2,0,0,1,0,1,1,7]
[null,"2017-08-22","公民館","C",7,5,4,9,0,0,0,0,1,1,2,0,1,0,0,4,9]
[null,"2017-09-03","東地区","A",7,2,3,5,0,1,0,0,0,2,2,0,1,0,0,0,6]
[null,"2017-09-07","北地区","D",8,0,8,8,5,2,0,2,1,0,0,1,0,1,0,1,13]
[null,"2017-09-08","公民館","C",6,0,6,6,0,0,0,0,0,1,1,0,2,0,2,1,7]
[null,"2017-09-17","東地区","A",5,0,5,5,1,0,0,2,0,1,2,0,1,1,1,0,9]
[null,"2017-09-20","北地区","D",4,0,9,9,1,1,0,1,1,2,1,0,1,0,0,1,9]
[null,"2017-09-26","公民館","C",6,0,6,6,1,0,0,1,2,1,0,1,1,0,0,0,7]
[null,"2017-10-01","東地区","A",7,0,7,7,1,0,0,1,1,1,3,0,2,2,0,0,11]
[null,"2017-10-05","北地区","D",8,0,10,10,1,0,0,1,2,4,1,1,2,3,0,0,15]
[null,"2017-10-13","公民館","C",6,0,4,4,0,0,0,2,0,0,0,1,0,0,0,1,4]
[null,"2017-10-15","東地区","A",4,1,2,3,0,0,0,1,0,1,1,0,0,0,0,1,4]
[null,"2017-10-18","北地区","D",6,1,6,7,2,0,0,1,1,2,0,0,1,0,0,1,8]
[null,"2017-10-24","公民館","C",5,0,6,6,0,0,0,2,1,0,0,1,1,0,1,0,6]
[null,"2017-11-02","北地区","D",8,1,8,9,0,0,0,2,1,1,1,1,1,2,0,1,10]
[null,"2017-11-05","東地区","A",6,0,4,4,0,0,0,0,0,2,2,2,2,0,0,0,8]
[null,"2017-11-10","公民館","C",6,1,6,7,2,0,0,0,0,1,0,4,1,0,0,0,8]
[null,"2017-11-15","北地区","D",6,0,9,9,0,0,0,1,2,0,0,2,2,0,0,1,8]
[null,"2017-11-19","東地区","A",5,0,6,6,0,1,0,0,0,1,0,3,2,1,0,1,9]
[null,"2017-11-28","公民館","C",5,2,8,10,3,2,0,1,1,2,0,4,3,2,0,0,18]
[null,"2017-12-03","東地区","A",5,2,8,10,3,2,0,1,1,2,0,4,3,2,0,0,18]
[null,"2017-12-07","北地区","D",8,0,6,6,1,0,0,1,0,0,2,3,0,0,0,0,7]
[null,"2017-12-08","公民館","C",4,0,6,6,0,0,0,1,1,0,0,2,1,0,1,0,6]
[null,"2017-12-17","東地区","A",7,1,9,10,0,1,0,2,0,0,0,4,2,0,1,0,10]
[null,"2017-12-19","公民館","C",8,0,5,5,1,1,0,1,1,1,0,1,1,0,0,0,7]
[null,"2017-12-20","北地区","D",7,0,6,6,1,1,0,2,0,1,1,2,0,0,0,0,8]
[null,"2018-01-07","東地区","A",8,0,8,8,2,1,0,0,1,3,1,1,0,0,1,1,11]
[null,"2018-01-11","北地区","D",8,0,7,7,1,0,0,1,1,0,1,0,1,2,1,0,8]
[null,"2018-01-12","公民館","C",8,1,6,7,1,0,0,0,3,1,2,0,1,0,2,0,10]
[null,"2018-01-17","北地区","D",7,2,3,5,1,0,2,2,0,0,0,0,2,1,0,0,8]
[null,"2018-01-21","東地区","A",6,3,6,9,2,0,0,1,0,2,2,0,1,3,0,1,{"$f":"SUM(I62:T62)","v":12}]
[null,"2018-01-23","公民館","C",5,0,1,1,1,0,0,0,0,0,0,0,0,0,0,0,1]
[null,"2018-02-01","北地区","D",6,2,7,9,2,0,0,1,2,3,1,1,2,0,1,1,14]
[null,"2018-02-04","東地区","A",7,0,5,5,1,0,0,0,3,1,0,0,0,1,0,0,6]
[null,"2018-02-09","公民館","C",6,0,5,5,0,0,0,0,1,0,3,0,1,0,1,0,6]
[null,"2018-02-18","東地区","A",7,2,7,9,0,1,0,1,3,3,2,0,0,1,0,1,12]
[null,"2018-02-21","北地区","D",6,0,9,9,1,0,0,3,2,2,0,0,0,2,0,2,12]
[null,"2018-02-27","公民館","C",7,0,4,4,0,0,0,0,1,0,2,0,1,0,1,0,{"$f":"SUM(I69:T69)","v":5}]
[null,"2018-03-01","北地区","D",5,0,6,6,1,0,0,0,2,2,0,0,0,1,0,1,7]
[null,"2018-03-04","東地区","A",8,0,4,4,1,0,0,2,2,0,0,0,0,0,0,0,5]
[null,"2018-03-09","公民館","C",8,0,1,1,0,0,0,0,1,0,0,0,0,0,0,0,1]
[null,"2018-03-14","北地区","D",7,1,3,4,3,0,0,1,0,0,2,0,0,0,0,1,7]
[null,"2018-03-18","東地区","A",7,0,7,7,0,0,0,3,2,1,1,0,1,0,2,0,10]
[null,"2018-03-27","公民館","C",6,0,4,4,1,0,0,0,2,1,0,0,0,0,1,1,6]
[]
[null,null,null,null,null,null,null,null,null,null,null,null,null,null,null,null,null,null,null,null,{"$f":"SUM(I77:T77)","v":0}]
[null,{"$f":"\"開催回数：\"&COUNTA(C4:C77)&\"回\"","v":"開催回数：72回"},null,null,{"$f":"SUM(E4:E77)","v":463},{"$f":"SUM(F4:F77)","v":38},{"$f":"SUM(G4:G77)","v":404},{"$f":"SUM(H4:H75)","v":442},{"$f":"SUM(I4:I77)","v":68},23,6,77,81,88,57,43,55,32,30,43,603]
[null,null,null,null,null,{"$f":"F78/$H$78","v":8.5972850678733032E-2},{"$f":"G78/$H$78","v":0.91402714932126694},null,{"$f":"I78/$U$78","v":0.11276948590381426},{"$f":"J78/$U$78","v":3.8142620232172471E-2},9.9502487562189053E-3,0.12769485903814262,0.13432835820895522,0.14593698175787728,9.4527363184079602E-2,7.1310116086235484E-2,9.1210613598673301E-2,5.306799336650083E-2,4.975124378109453E-2,7.1310116086235484E-2]
[]
[null,"※ このエクセルデータ及びグラフは、「パソコン相談会実施報告掲示板」に記入された情報で、逐次更新しています。"]
[null,"※ この表は、各グループ相談会担当者のご協力をいただき、ホームページ部会運営委員が作成を担当しています。"]
[null,"※ 相談者属性ならびに特記事項のシートもご覧ください。"]
[null,null,null,null,null,null,null,null,null,null,null,null,null,null,null,null,null,null,null,null,{"$f":"SUM(I84:T84)","v":0}]
[null,null,null,null,null,null,null,null,null,null,null,null,null,null,null,null,null,null,null,null,0]
[null,null,null,null,null,null,null,null,null,null,null,null,null,null,null,null,null,null,null,null,0]

{"sheet":"相談者属性","index":1,"n_rows":119,"n_cols":19,"rows_kept":119,"cut":false,"hidden":false,"merged":[[87,16,87,17],[1,1,2,1],[1,2,2,2],[1,3,2,3],[86,14,87,15],[85,2,85,4],[85,6,85,8],[85,10,85,12],[85,14,85,16],[86,16,86,17],[77,1,77,2],[81,2,81,5],[81,6,81,9],[81,10,81,13],[81,14,81,17],[0,2,0,16],[1,4,1,5],[1,6,1,10],[1,11,1,12],[1,13,1,18]]}
[null,"更新日：2018.3.28","パソコン相談会　相談者属性データ（平成29年度）"]
[null,"日付","実施　 場所","グループ","性別",null,"年齢区分",null,null,null,null,"パソコン",null,"パソコンのＯＳ"]
[null,null,"実施場所","グループ","男","女","～49","50～","60～","70～","80～","会場（7）","持参","ＸＰ","Ｖｉｓｔａ　","7","8",10,"mobile"]
[null,"2017-04-02","東地区","A",4,0,0,0,1,3,0,0,4,0,1,2,0,0,1]
[null,"4月6日","北地区","D",5,5,0,0,2,6,2,1,9,0,2,2,3,3,3]
[null,"2017-04-14","公民館","C",4,2,0,0,0,6,0,0,6,1,1,1,1,2,0]
[null,"2017-04-16","東地区","A",5,1,5,0,1,0,1,2,1,2,1,0,0,2,0]
[null,"2017-04-19","北地区","D",7,1,0,0,1,6,1,1,7,0,1,2,1,4,1]
[null,"2017-04-25","公民館","C",4,2,0,0,0,6,0,0,6,1,0,2,1,2,0]
[null,"2017-05-07","東地区","A",6,1,0,0,1,4,2,0,7,0,0,3,0,3,1]
[null,"2017-05-10","北地区","D",5,4,0,0,1,8,0,1,8,0,0,1,2,6,0]
[null,"2017-05-12","公民館","C",5,0,1,0,1,3,0,1,4,0,0,1,1,3,0]
[null,"2017-05-17","北地区","D",5,1,0,0,0,5,1,1,5,0,1,2,1,2,0]
[null,"2017-05-21","東地区","A",4,0,0,0,0,3,1,0,4,0,0,1,0,2,1]
[null,"2017-05-23","公民館","C",3,2,1,0,1,3,0,0,5,0,1,0,2,1,1]
[null,"2017-06-01","北地区","D",5,2,0,0,1,6,0,2,5,0,0,2,1,4,1]
[null,"2017-06-04","東地区","A",7,0,0,0,1,6,0,1,6,0,1,2,2,2,1]
[null,"2017-06-09","公民館","C",4,2,0,1,1,3,1,2,4,0,0,1,0,4,0]
[null,"2017-06-17","東地区","A",5,0,0,0,1,3,1,0,5,0,0,2,0,2,1]
[null,"2017-06-21","北地区","D",3,0,0,0,1,2,0,0,3,0,0,0,1,2,0]
[null,"2017-06-27","公民館","C",2,3,0,1,1,3,0,0,5,0,1,1,0,3,0]
[null,"2017-07-02","東地区","A",3,0,0,0,0,2,1,0,3,0,0,1,0,2,0]
[null,"2017-07-06","北地区","D",5,0,0,0,1,3,1,2,3,0,0,2,0,3,0]
[null,"2017-07-14","公民館","C",5,0,1,0,0,4,0,2,3,0,0,2,0,3,0]
[null,"2017-07-16","東地区","A",5,0,0,0,0,4,1,0,5,0,0,1,1,3,0]
[null,"2017-07-19","北地区","D",5,2,0,0,1,5,1,1,6,0,0,1,2,4,0]
[null,"2017-07-25","公民館","C",1,2,1,0,1,1,0,0,3,0,1,0,0,2,0]
[null,"2017-08-03","北地区","D",3,2,0,0,1,3,1,1,4,0,0,1,0,4,0]
[null,"2017-08-06","東地区","A",6,0,0,0,0,4,2,1,5,0,0,1,2,3,0]
[null,"2017-08-12","公民館","C",4,1,0,0,0,5,0,0,5,0,1,0,1,3,0]
[null,"2017-08-16","北地区","D",6,2,0,0,1,7,0,1,7,0,0,2,1,5,0]
[null,"2017-08-20","東地区","A",4,0,0,0,0,2,2,0,4,0,0,1,0,3,0]
[null,"2017-08-22","公民館","C",2,7,2,0,6,1,0,1,5,0,0,0,0,5,0]
[null,"2017-09-03","東地区","A",3,2,0,0,1,2,2,0,5,0,0,1,0,4,0]
[null,"2017-09-07","北地区","D",6,2,0,0,3,5,0,1,7,0,0,3,1,4,0]
[null,"2017-09-08","公民館","C",4,2,0,1,0,5,0,0,6,0,0,0,0,6,0]
[null,"2017-09-17","東地区","A",3,2,0,0,1,3,1,0,5,0,0,1,0,4,0]
[null,"2017-09-20","北地区","D",7,2,0,0,2,6,1,1,8,0,0,3,1,5,0]
[null,"2017-09-26","公民館","C",4,2,1,0,1,4,0,0,6,0,0,0,1,5,0]
[null,"2017-10-01","東地区","A",5,2,0,0,2,4,1,1,6,0,0,4,0,2,1]
[null,"2017-10-05","北地区","D",8,2,0,0,2,7,1,1,9,0,0,3,1,6,0]
[null,"2017-10-13","公民館","C",3,1,0,1,0,3,0,0,4,0,0,0,1,3,0]
[null,"2017-10-15","東地区","A",1,2,1,0,1,1,0,0,3,0,0,1,1,1,0]
[null,"2017-10-18","北地区","D",5,2,0,0,1,5,1,0,0,0,0,2,1,4,0]
[null,"2017-10-24","公民館","C",3,3,1,1,1,3,0,0,6,0,1,0,1,4,0]
[null,"2017-11-02","北地区","D",6,3,0,0,3,5,1,1,7,0,0,2,0,6,1]
[null,"2017-11-05","東地区","A",4,0,0,0,0,2,2,0,4,0,0,2,0,2,0]
[null,"2017-11-10","公民館","C",5,2,0,2,0,4,1,0,7,1,0,0,0,6,0]
[null,"2017-11-15","北地区","D",6,3,0,0,2,6,1,1,8,0,0,2,1,6,0]
[null,"2017-11-19","東地区","A",5,1,0,0,0,4,2,0,6,0,1,1,1,2,1]
[null,"2017-11-28","公民館","C",8,2,0,1,6,3,0,0,0,0,2,5,0,2,1]
[null,"2017-12-03","東地区","A",8,2,0,1,6,3,0,0,0,0,2,5,0,2,1]
[null,"2017-12-07","北地区","D",3,3,0,0,2,4,0,2,4,0,0,2,2,2,0]
[null,"2017-12-08","公民館","C",2,4,0,2,0,4,0,1,5,0,1,1,0,3,0]
[null,"2017-12-17","東地区","A",7,3,1,1,0,6,2,0,0,0,0,2,0,8,0]
[null,"2017-12-19","公民館","C",2,3,1,1,0,3,0,1,4,0,2,0,1,1,0]
[null,"2017-12-20","北地区","D",4,2,0,0,1,4,1,1,5,0,0,2,0,4,0]
[null,"2018-01-07","東地区","A",7,1,0,0,0,5,2,0,7,0,0,2,1,3,1]
[null,"2018-01-11","北地区","D",5,2,0,0,2,4,1,1,6,0,0,2,0,4,0]
[null,"2018-01-12","公民館","C",4,3,0,3,0,4,0,1,6,0,0,0,1,5,0]
[null,"2018-01-17","北地区","D",2,3,1,1,1,2,0,2,3,0,0,3,0,2,0]
[null,"2018-01-21","東地区","A",8,1,0,1,1,5,2,1,8,0,0,3,1,5,0]
[null,"2018-01-23","公民館","C",0,1,0,1,0,0,0,1,0,0,0,0,0,0,0]
[null,"2018-02-01","北地区","D",4,5,0,1,1,6,1,1,8,0,0,2,1,6,0]
[null,"2018-02-04","東地区","A",4,1,0,1,1,2,1,0,5,0,0,2,1,2,0]
[null,"2018-02-09","公民館","C",3,2,0,2,0,3,0,2,3,0,0,0,0,3,0]
[null,"2018-02-18","東地区","A",6,3,0,0,5,3,1,3,6,0,1,5,1,2,0]
[null,"2018-02-21","北地区","D",4,5,0,0,3,5,1,1,8,0,0,1,1,7,0]
[null,"2018-02-27","公民館","C",2,2,0,2,0,2,0,1,3,0,0,0,0,3,0]
[null,"2018-03-01","北地区","D",5,1,0,0,1,4,1,1,5,0,0,1,0,5,0]
[null,"2018-03-04","東地区","A",4,0,0,0,1,1,2,0,4,0,0,3,0,1,0]
[null,"2018-03-09","公民館","C",0,1,0,1,0,0,0,1,0,0,0,0,0,0,0]
[null,"2018-03-14","北地区","D",4,0,0,0,0,3,1,1,3,0,0,1,0,3,0]
[null,"2018-03-18","東地区","A",5,2,0,0,3,2,2,0,7,0,0,3,0,3,1]
[null,"2018-03-27","公民館","C",2,2,0,2,0,2,0,1,3,0,0,0,0,3,0]
[]
[]
[null,{"$f":"\"開催回数：\"&COUNTA(C4:C78)&\"回\"","v":"開催回数：72回"},null,null,{"$f":"SUM(E4:E77)","v":313},129,17,28,80,266,51,50,347,5,22,107,43,236,18]
[null,null,null,null,{"$f":"E78/$R$84","v":0.70814479638009054},0.29185520361990952,3.8461538461538464E-2,{"$f":"H78/$R$84","v":6.3348416289592757E-2},0.18099547511312217,0.60180995475113119,0.11538461538461539,null,null,{"$f":"N78/SUM($N$78:$R$78)","v":1.2106537530266344E-2},{"$f":"O78/SUM($N$78:$R$78)","v":5.3268765133171914E-2},0.25907990314769974,0.10411622276029056,0.5714285714285714,4.3583535108958835E-2]
[]
[null,null,"相談者・性別データ"]
[null,null,"東地区文化セﾝﾀｰ（Ａグループ）",null,null,null,"公民館（Ｃグループ）",null,null,null,"北地区文化セﾝﾀｰ（Ｄグループ）",null,null,null,"パソコン相談会　集計"]
[null,null,"開催数","男性","女性","合計","開催数","男性","女性","合計","開催数","男性","女性","合計","開催","男性","女性","相談者"]
[null,null,{"$f":"COUNTIF($C$4:$C$77,\"東地区\")","v":24},{"$f":"SUMIFS($E$4:$E$77,$C$4:$C$77,\"東地区\")","v":119},{"$f":"SUMIFS($F$4:$F$77,$C$4:$C$77,\"東地区\")","v":24},{"$f":"SUM(D84:E84)","v":143},{"$f":"COUNTIF($C$4:$C$77,\"公民館\")","v":24},{"$f":"SUMIFS($E$4:$E$77,$C$4:$C$77,\"公民館\")","v":76},{"$f":"SUMIFS($F$4:$F$77,$C$4:$C$77,\"公民館\")","v":51},{"$f":"SUM(H84:I84)","v":127},{"$f":"COUNTIF($C$4:$C$77,\"北地区\")","v":24},{"$f":"SUMIFS($E$4:$E$77,$C$4:$C$77,\"北地区\")","v":118},{"$f":"SUMIFS($F$4:$F$77,$C$4:$C$77,\"北地区\")","v":54},{"$f":"SUM(L84:M84)","v":172},{"$f":"G84+K84+C84","v":72},{"$f":"D84+H84+L84","v":313},129,442]
[null,null,"相談件数データ"]
[null,null,"相談件数　計",null,null,{"$f":"SUMIFS(相談会集計!$U$4:$U$77,相談会集計!$C$4:$C$77,\"東地区\")","v":211},"相談件数　計",null,null,{"$f":"SUMIFS(相談会集計!$U$4:$U$77,相談会集計!$C$4:$C$77,\"公民館\")","v":161},"相談件数　計",null,null,{"$f":"SUMIFS(相談会集計!$U$4:$U$77,相談会集計!$C$4:$C$77,\"北地区\")","v":231},"相談件数　総計",null,null,{"$f":"F86+J86+N86","v":603}]
[null,null,null,null,null,null,null,null,null,null,null,null,null,null,"１開催当たり",null,{"$f":"\"相談者＝\"&ROUND(R84/O84,1)&\"人\"","v":"相談者＝6.1人"}]
[null,null,null,null,null,null,null,null,null,null,null,null,null,null,null,null,{"$f":"\"相談数＝\"&ROUND(R86/O84,1)&\"件\"","v":"相談数＝8.4件"}]
[]
[]
[null,null,"相談者の男女構成",null,null,null,"相談者の年齢構成",null,null,null,null,null,"パソコンのOS構成"]
[null,null,"男性","女性",null,null,"～49","50～","60～","70～","80～",null,"ＸＰ","Vista","7","8",10,"moblie"]
[null,null,{"$f":"E78","v":313},{"$f":"F78","v":129},"人",null,{"$f":"G78","v":17},{"$f":"H78","v":28},80,266,51,"人",{"$f":"N78","v":5},{"$f":"O78","v":22},107,43,236,18,"台"]
[]
[]
[]
[]
[]
[]
[]
[]
[]
[]
[]
[]
[]
[]
[]
[]
[]
[]
[]
[]
[null,null,"◎相談会参加人数推移",null,null,null,null,null,null,null,null,null,null,null,null,null,"◎年間開催計画：A=24回,C=24回,D=24回　合計72回"]
[null,null,"ｸﾞﾙｰﾌﾟ","4月","5月","6月","7月","8月","9月","10月","11月","12月","1月","2月","3月","合計","人/回"]
[null,null,"A・東",{"$f":"6+4","v":10},{"$f":"7+4","v":11},{"$f":"7+5","v":12},{"$f":"3+5","v":8},{"$f":"6+4","v":10},{"$f":"5+5","v":10},{"$f":"7+3","v":10},{"$f":"4+6","v":10},{"$f":"10+10","v":20},{"$f":"8+9","v":17},{"$f":"5+9","v":14},11,{"$f":"SUM(D116:O116)","v":143},{"$f":"P116/$C$84","v":5.958333333333333}]
[null,null,"C・公",{"$f":"6+6","v":12},{"$f":"5+5","v":10},{"$f":"6+5","v":11},{"$f":"5+3","v":8},{"$f":"5+9","v":14},{"$f":"6+6","v":12},{"$f":"4+6","v":10},17,{"$f":"6+5","v":11},{"$f":"7+1","v":8},{"$f":"5+4","v":9},5,127,{"$f":"P117/$G$84","v":5.291666666666667}]
[null,null,"D・北",{"$f":"10+8","v":18},{"$f":"9+6","v":15},{"$f":"7+3","v":10},{"$f":"5+7","v":12},{"$f":"5+8","v":13},{"$f":"9+8","v":17},{"$f":"10+7","v":17},{"$f":"9+9","v":18},{"$f":"6+6","v":12},{"$f":"7+5","v":12},{"$f":"9+9","v":18},10,172,{"$f":"P118/$K$84","v":7.166666666666667}]
[null,null,"合計",{"$f":"SUM(D116:D118)","v":40},36,33,28,37,39,37,45,43,37,41,26,442,{"$f":"P119/$O$84","v":6.1388888888888893}]

{"sheet":"特記事項","index":2,"n_rows":201,"n_cols":4,"rows_kept":201,"cut":false,"hidden":false,"merged":[[108,2,111,2]]}
[null,null,null,"特記事項　　平成29年度"]
[null,null,"◎","4/2日・Aグループ（東文センター）"]
[null,null,null,"ー"]
[]
[null,null,"◎","4/6日・Dグループ（北文センター）"]
[null,null,null,"スマホ相談が3件ありました。スマホからPCに画像の取り込み　2件,　PCからスマホに画像の取り込み　1件"]
[null,null,"◎","4/14日・Cグループ（公民館）"]
[null,null,null,"＊PCとスマホのテザリングを教える。＊スマホやデジカメの写真をPCに送る方法、＊PCの写真をUSBに移す方法。　＊Vista→Win10への移行の段取り。"]
[null,null,"◎","4/16日・Aグループ（東文センター）"]
[null,null,null,"来訪者１名は、口頭相談のみでパソコン使用なし。"]
[]
[null,null,"◎","4/19日・Dグループ（北文センター）"]
[null,null,null,"スマホは１件、テザリングの実験"]
[]
[null,null,"◎","4/25日・Cグループ（公民館）"]
[null,null,null,"* 住所録の作成操作（ヘッター、フッター、余白等）"]
[null,null,null,"* Win10の設定、シングルクリックへの変更、ファイル名の拡大表示(次回Vistaのメール移行予定）"]
[null,null,null,"* Power Point　　　* Excel表作成　 * PCに画像取り込み方の復習、フォルダーの名前変更"]
[null,null,"◎","5/7日・Aグループ（東文センター）"]
[null,null,null,"ー"]
[]
[null,null,"◎","5/10日・Dグループ（北文センター）"]
[null,null,null,"－"]
[null,null,"◎","5/12日・Cグループ（公民館）"]
[null,null,null,"* 写真加工　　* DVDで医学の単語を聞く方法　　* Excel操作、表データ入力"]
[null,null,null,"* Excelで（写真入り文章）アルバムを作る. ＰＣへの写真の取り組み。"]
[null,null,null,"* VistaからWin10への移行調整"]
[null,null,"◎","5/17日・Dグループ（北文センター）"]
[null,null,null," カテゴリーの「その他」は、パワーポイント講座を受講している人で、オープンオフィスのパワーポイントは、受講で使用しているパワーポイントとのリボンの違いがあり、使い勝手が悪い。\n もう1件は、Vista機をWin7にアップグレードしたい。　の2件です。"]
[]
[null,null,"◎","5/21日・Aグループ（東文センター）"]
[null,null,null,"－"]
[null,null,"◎","5/23日・Cグループ（公民館）"]
[null,null,null,"* エクセル（家計簿）　＊エクセルのファイルとシートの違いの確認、現金出納簿（シートコピーと項目分類について）　＊新しいパソコンへのメールアカウントの移行　　＊　パワーポイント講習会の復習"]
[null,null,"◎","6/1日・Dグループ（北文センター）"]
[null,null,null,"スマホは１件：スマホのラインで送ってきた写真（画像）を自分のスマホの写真フォルダに入れ保存したい。その画像を他の人に添付して送りたい。"]
[null,null,null,"その他は２件：１件は、パワーポイントで、スライドの再生の仕方。もう１件は、PCにｏffice365ソフト導入の方法。"]
[null,null,"◎","6/4日・Aグループ（東文センター）"]
[null,null,null,"－"]
[null,null,"◎","6/9日・Cグループ（公民館）"]
[null,null,null,"*「筆ぐるめ」とWin10との関係によるトラブル（Win７からWin10への移行に際し「筆ぐるめ」の内容がいつの間にか代わっていた）。\n*Liveメールサポート終了の助言。"]
[null,null,null,"*デジカメ写真の編集：　フォートがWin8とWin10では、かなり画面が違い、特にトリミングの方法がわからず、困っていました。"]
[null,null,null,"*パワーポイント講座の復習。"]
[null,null,"◎","6/18日・Aグループ（東文センター）"]
[null,null,null,"－"]
[null,null,"◎","6/21日・Dグループ（北文センター）"]
[null,null,null,"大雨の中、3人の方が参加されました。"]
[null,null,null,"その他の1件は、Windows8の持参の方で、「Windows10への変更を促すメッセージが出ている。」の相談でした。応対は、次の通りです。「メッセージは前回も確認した。相談会では時間的な制約があるので躊躇していた。今日、その点の相談を本人と進め、ご自宅で家族とともにwindows10に変更するように進め、本人からも了解を得た。」"]
[null,null,"◎","6/27日・Cグループ（公民館）"]
[null,null,null,"* Webからの懸賞応募、Live メール使用から「メール」アプリへの移行案内。*ドキュメント内のファイル整理、USBへのコピーの方法。* VistaからWin10へ（USBでドキュメントをVista からWin10へコピーする方法.)"]
[null,null,null,"*新規パソコンのメール設定。　* エクセル：家計簿。"]
[null,null,"◎","7/2日・Aグループ（東文センター）"]
[null,null,null,"ー"]
[]
[null,null,"◎","7/6日・Dグループ（北文センター）"]
[null,null,null,"コメント欄＝再来の1名は、男性で、A,　D-グループに"]
[null,null,null,"も時々来訪する怒りっぽい,ちょっと問題??がある相談者（練?さん)でした。"]
[null,null,"◎","7/14日・Cグループ（公民館）"]
[null,null,null,"ワードで表の作成・削除/エクセルで行の挿入、削除、セルの塗りつぶし。"]
[null,null,null,"ワードの書式設定、文字入力。"]
[null,null,null,"ワードで年賀状の書き方。エクセルで表作成と入力。"]
[null,null,null,"グーグル上で検索の仕方について。"]
[null,null,"◎","7/16日・Aグループ（東文センター）"]
[null,null,null,"その他は= ・ホームページのメンテナンス操作方法相談"]
[]
[null,null,"◎","7/19日・Dグループ（北文センター）"]
[null,null,null,"その他は＝パワーポイントで相模川の写真図鑑をつくる。"]
[]
[null,null,"◎","7/25日・Cグループ（公民館）"]
[null,null,null,"＊ パワーポイントに音楽を挿入する。　PDF(アクロバットリーダーのインストール）。"]
[null,null,null,"＊ エクセルで家計簿"]
[null,null,"◎","8/3日・Dグループ（北文センター）"]
[null,null,null,"ー"]
[null,null,"◎","8/6日・Aグループ（東文センター）"]
[null,null,null,"その他：　Skypeの再設定に関する相談がありました。"]
[]
[null,null,"◎","8/12日・Cグループ（公民館）"]
[null,null,null,"*タスクバー操作、画像印刷、PDFの説明。*音声録音ソフト、編集ソフトのインストールと操作方法の説明。"]
[null,null,null,"*PCは購入したが使えない、インターネットの操作方法。*　エクセルで作成した住所録の活用方法、パソコンがAcerでキングソフトをマイクロソフトのオフイスソフトに変更できるか。　* ローマ字入力の練習。"]
[]
[null,null,"◎","8/16日・Dグループ（北文センター）"]
[null,null,null,"その他：　パワーポイントの相談です。"]
[null,null,"◎","8/20日・Aグループ（東文センター）"]
[null,null,null,"Skype連絡先登録とグループ登録解除の操作方法確認"]
[]
[null,null,"◎","8/22日・Cグループ（公民館）"]
[null,null,null,"* ライセンス（著作権）について、録音編集ソフトの使用方法。* アマゾンで古本探し。* ヤフーメールの再開。"]
[null,null,null,"　* ホームページ開設の仕方（4名のグループ）"]
[null,null,"◎","9/3日・Aグループ（東文センター）"]
[null,null,null,"ー"]
[null,null,"◎","9/7日・Dグループ（北文センター）"]
[null,null,null,"コメント = その他の1件は、パワーポイントの相談です。"]
[]
[null,null,"◎","9/8日・Cグループ（公民館）"]
[null,null,null,"* メールアプリアドレス保存設定方法　　* スタートページ設定　　* 画像取り込み、ファイル整理。"]
[null,null,null,"* Google マップの使い方。* デジカメ画像をPCに取り込み。（有線でネットに接続できなかったー原因不明）"]
[]
[null,null,"◎","9/17日・Aグループ（東文センター）"]
[null,null,null,"特に無し"]
[null,null,"◎","9/20日・Dグループ（北文センター）"]
[null,null,null,"その他の1件は、OASYSのデータをWindows8で開くことができるか？の相談です。"]
[]
[null,null,"◎","9/26日・Cグループ（公民館）"]
[null,null,"◎","10/1日・Aグループ（東文センター）"]
[null,null,null,"ー"]
[null,null,"◎","10/5日・Dグループ（北文センター）"]
[null,null,null,"ー"]
[null,null,"◎","10/13日・Cグループ（公民館）"]
[null,null,null,"* 18年年賀状準備ー17年年賀状をコピー、年号、クリップアート入れ替え。写真選択"]
[null,null,null,"* 中国語入力設定"]
[null,null,null,"* 年賀状作成（word),用紙設定、写真フォルダー整理。"]
[null,null,null,"* 筆ぐるめー住所録リストの印刷操作、ユーザー登録"]
[null,null,"◎","10/15日・Aグループ（東文センター）"]
[null,null,null,"コメント = 9月に実施した、パワーポイント講座の受講者が来館、「自己紹介」完成版と講座を受講しての感想をパワーポイントで作成され紹介頂きました。"]
[null,null,"◎","10/18日・Dグループ（北文センター）"]
[null,null,null,"・その他の1件は、PPT作品を外国語表示（中国語版）にする相談です。"]
[null,null,null,"・ワードで作成した「文化祭」パンフレットをエクセルに変更、見栄えの良いものにしたい。"]
[null,null,null,"・来年のE-TAXでの確定申告用医療費控除資料作成相談などでした。"]
[null,null,"◎","10/24日・Cグループ（公民館）"]
[null,null,null,"コメント* One-driveの説明　　* 写真ファイルの整理、写真トリミング。　　* 筆ぐるめ（住所録一覧表の作成、イラスト入力操作）　* 家計簿　　* 2018年用7種類の年賀状に使用する画像選び、印刷準備。　* 講習会の復習ー年賀状の作り方、YouTubeの観る方法。"]
[null,null,"◎","11/2日・Dグループ（東文センター）"]
[null,null,null,"その他の1件は、パワーポイントで、「史跡を訪ねて」の作品作りのお手伝い、です。"]
[null,null,null,"Mobileは、タブレットで、アンドロイドです。メールの相談とIEでHPの設定の相談です。"]
[null,null,null,"その他、スキャナーで読み込んだワード文書を修正したい、年賀状関係が3件、などの相談がありました。"]
[null,null,"◎","11/5日・Aグループ（北文センター）"]
[]
[]
[null,null,"◎","11/10日・Cグループ（公民館）"]
[null,null,null,"コメント = * 年賀状テスト印刷（文面、宛名面）　* 筆ぐるめ選定、保存操作。　"]
[null,null,null,"受信メールを移動する新規フォルダーの作成操作。　* エクセル操作　"]
[null,null,null,"* パソコン初めてーワードで文字を入力する練習。"]
[null,null,"◎","11/15日・Dグループ（北文センター）"]
[null,null,null,"その他の1件は、パワーポイントで、作品作りのお手伝いです。"]
[null,null,null,"年賀状関係が2件、確定申告関係が1件、などの相談です。"]
[null,null,"◎","11/19日・Aグループ（東文センター）"]
[null,null,null,"コメント = パワーポイントのアニメーション設定方法の習得"]
[]
[null,null,"◎","11/28日・Cグループ（公民館）"]
[]
[]
[null,null,"◎","12/3日・Aグループ（東文センター）"]
[null,null,null,"ー"]
[null,null,"◎","12/7日・Dグループ（北文センター）"]
[null,null,null,"相談内容は、年賀状関係が4件、内ワードで作成が1件。"]
[null,null,null,"新しくPC(Win10)を購入した参加者から、①「ピクチャ」フォルダーの扱い②メールの添付ファイルの保存の仕方③メールを誤って削除したいときの対応の仕方④メールのバックアップの仕方　など、でした。"]
[null,null,"◎","12/8日・Cグループ（公民館）"]
[null,null,null,"相談内容は、 * デジカメ画像取り込み、フォルダー名変更、ピクチャーに移動　* プリンターエプソンの用紙詰まり、EP709A、筆ぐるめによる印刷  * 年賀状    * 文字入力　 * オートフィル"]
[null,null,"◎","12/17日・Aグループ（東文センター）"]
[null,null,null,"特に無し"]
[null,null,"◎","12/19日・Cグループ（公民館）"]
[null,null,null,"相談内容は、 * 家計簿　　* 筆ぐるめの文字サイズの変更方法　　* ヤフーで色々な検索練習、文字入力の練習"]
[]
[null,null,"◎","12/20日・Dグループ（北文センター）"]
[null,null,null," 筆ぐるめ関係が2件、ワードで自分用のテンプレートの作成、ワードからPDFの作成、などがありました"]
[]
[null,null,"◎","1/7日・Aグループ（東文センター）"]
[null,null,null,"コメント = スカイプ操作確認"]
[null,null,"◎","1/11日・Dグループ（北文センター）"]
[null,null,null,"コメント = 確定申告の入力相談が出始めた"]
[]
[null,null,"◎","1/12日・Cグループ（公民館）"]
[null,null,null,"コメント = * ヤフーでの検索、PCのシャットダウンの仕方。　* Liveメールから他のメールアプリへの移行と送受信OKの確認。 * 画像データーファイル操作。　* 印刷設定　　* Excelで会の名簿作り。　* Excelで平均、合計の方法とシートの印刷"]
[null,null,"◎","1/17日・Dグループ（北文センター）"]
[null,null,null,"特に無し"]
[null,null,"◎","1/21日・Aグループ（東文センター）"]
[null,null,null,"コメント = 無線ルータ設定作業"]
[]
[null,null,"◎","1/23日・Cグループ（公民館）"]
[null,null,null,"コメント = 大雪の為に参加者は１名でした。"]
[null,null,null,"ー"]
[null,null,"◎","2/1日・Dグループ（北文センター）"]
[null,null,null,"コメント = その他内容　SDカードの取り扱い"]
[]
[null,null,"◎","2/4日・Aグループ（東文センター）"]
[null,null,null,"ー"]
[null,null,"◎","2/9日・Cグループ（公民館）"]
[null,null,null,"* One-Driveへのアクセス　　* カメラの画像をパソコンに取込む方法。古いメールの削除方法。"]
[null,null,null,"* Excel 入力データーの修正　数字の文字/数字設定不具合"]
[null,null,null,"* 講座用Excelテキスト第2章、第3章（合計・平均まで）の復習と予習。"]
[null,null,"◎","2/18日・Aグループ（東文センター）"]
[null,null,null,"パワーポイントの相談がありました。（パワーポイント講座受講者）"]
[null,null,null,"また、ZPSCへの入会希望者の来館がありました"]
[null,null,"◎","2/21日・Dグループ（北文センター）"]
[null,null,null,"コメント = ①PPTの応用　②ドライブCが一杯の際の対応"]
[null,null,"◎","2/27日・Cグループ（公民館）"]
[null,null,null,"コメント = * One-Drive 共有について　　* メール：Liveメールから「メールアプリ」へ移行、テスト→完了。　デジカメ：カメラの日付フォルダーの取込み、名前の変更。　* エクセル講座の復習"]
[]
[null,null,"◎","3/1日・Dグループ（北文センター）"]
[null,null,null,"コメント = 画像を含むdocx文書を、リッチテキストに変換する"]
[]
[null,null,"◎","3/4日・Aグループ（東文センター）"]
[null,null,null,"---"]
[null,null,"◎","3/9日・Cグループ（公民館）"]
[null,null,null,"コメント = Excel講座の復習 （データーベース)"]
[null,null,"◎","3/14日・Dグループ（北文センター）"]
[null,null,null,"コメント = PPT(ﾊﾟﾜｰﾎﾟｲﾝﾄ）の画像送信について"]
[null,null,"◎","3/18日・Aグループ（東文センター）"]
[null,null,"◎","コメント = ・以前相談会に来館されていた方が、未だ続いているか確認に来られので、4月からの相談会の予定表をお渡ししました。"]
[null,null,"◎","3/27日・Cグループ（公民館）"]
[null,null,null,"* 非常に助かりました　中国語ソフトの設定、PCの音声設定の変更。* 2月の講座Excelのグラフの復習。"]
[null,null,null,"* HP印刷　　* 1. デジカメ PCに取込み、名前の変更、2. カメラ日付の誤りをて訂正。"]